bitfinex/quotes_BTCUSD_20250114
["timestamp","ask_amount","ask_price","bid_price","bid_amount"]
[1736866496393,0.00114996,96570.0,96569.0,0.08113539]
[1736866496636,0.00014996,96570.0,96569.0,0.08113539]
[1736866496845,0.00114996,96570.0,96569.0,0.0861]
[1736866496993,0.00014996,96570.0,96569.0,0.0801]
[1736866497213,0.00014996,96570.0,96569.0,0.0831]
[1736866497448,0.00014996,96570.0,96569.0,0.08413539]
[1736866497620,0.00802996,96570.0,96569.0,0.08413539]
[1736866497821,0.00802996,96570.0,96569.0,0.0801]
[1736866498042,0.00802996,96570.0,96569.0,0.0831]
[1736866498243,0.00802996,96570.0,96569.0,0.003]
[1736866498502,0.11325688,96570.0,96569.0,0.01]
[1736866498831,0.11225688,96570.0,96547.0,0.00103556]
[1736866499144,0.00902996,96570.0,96556.0,0.09962315]
[1736866499369,0.00902996,96570.0,96547.0,0.03858]
[1736866499370,0.10526276,96569.0,96547.0,0.03858]
[1736866499578,0.20433833,96557.0,96542.0,0.00103562]
[1736866500060,0.20433833,96557.0,96541.0,0.0801]
[1736866500061,0.10422692,96556.0,96543.0,0.00103569]
[1736866500472,0.10422692,96556.0,96529.0,0.1]
[1736866500473,0.00103584,96555.0,96536.0,0.00103569]
[1736866500675,0.00103584,96555.0,96529.0,0.0801]
[1736866500676,0.20433833,96546.0,96530.0,0.00103569]
[1736866500841,0.15,96559.0,96534.0,0.09962315]
[1736866501042,0.15,96557.0,96535.0,0.00103569]
[1736866501282,0.10422692,96557.0,96537.0,0.09962315]
[1736866501491,0.00788,96558.0,96538.0,0.00103566]
[1736866501695,0.00788,96558.0,96540.0,0.09962315]
[1736866502040,0.00788,96558.0,96556.0,0.006]
[1736866502243,0.00788,96558.0,96547.0,0.09962315]
[1736866502443,0.20629093,96570.0,96549.0,0.09962315]
[1736866502652,0.00788,96557.0,96550.0,0.00103553]
[1736866503035,0.00788,96557.0,96551.0,0.00103554]
[1736866503162,0.15,96569.0,96551.0,0.00103554]
[1736866503372,0.00788,96568.0,96551.0,0.00103554]
[1736866503991,0.00788,96568.0,96556.0,0.002]
[1736866504189,0.00788,96568.0,96557.0,0.00103553]
[1736866504403,0.00788,96568.0,96558.0,0.00103553]
[1736866504673,0.00788,96568.0,96557.0,0.00103552]
[1736866504883,0.001,96568.0,96564.0,0.09962315]
[1736866505089,0.001,96568.0,96567.0,0.09962315]
[1736866505299,0.002,96569.0,96563.0,0.09962315]
[1736866505501,0.002,96569.0,96559.0,0.00103541]
[1736866505705,0.002,96569.0,96558.0,0.0789]
[1736866505706,0.0019526,96570.0,96560.0,0.0010355]
[1736866505968,0.0019526,96570.0,96567.0,0.09962315]
[1736866506145,0.0019526,96570.0,96568.0,0.00103536]
[1736866506354,0.00788,96569.0,96559.0,0.00103546]
[1736866506596,0.00788,96569.0,96563.0,0.004]
[1736866506597,0.15,96567.0,96563.0,0.004]
[1736866506813,0.10460377,96564.0,96563.0,0.004]
[1736866507023,0.00037685,96551.0,96530.0,0.00072934]
[1736866507233,0.20433833,96540.0,96530.0,0.00072934]
[1736866507449,0.11210692,96539.0,96530.0,0.00072934]
[1736866507648,0.00788,96539.0,96528.0,0.00189399]
[1736866507857,0.00788,96538.0,96528.0,0.00189399]
[1736866508060,0.00788,96538.0,96529.0,0.00103585]
[1736866508272,0.00788,96538.0,96530.0,0.00103583]
[1736866508448,0.09118971,96550.0,96532.0,0.1283]
[1736866508668,0.09118971,96548.0,96536.0,0.09962315]
[1736866508833,0.09118971,96548.0,96530.0,0.004]
[1736866508834,0.00037685,96533.0,96530.0,0.004]
[1736866509048,0.40867666,96546.0,96500.0,0.025046]
[1736866509049,0.00037685,96527.0,96500.0,0.025046]
[1736866509221,0.00037685,96508.0,96500.0,0.025046]
[1736866509426,0.11210692,96507.0,96500.0,0.025046]
[1736866509668,0.10422692,96507.0,96506.0,0.00049619]
[1736866509910,0.11210692,96507.0,96506.0,0.00049619]
[1736866510076,0.00788,96507.0,96506.0,0.00049619]
[1736866510893,0.002,96508.0,96506.0,0.00049619]
[1736866511090,0.00788,96507.0,96506.0,0.00049619]
[1736866511298,0.00788,96507.0,96506.0,0.00149619]
[1736866511924,0.11210692,96507.0,96506.0,0.00049619]
[1736866512078,0.13748377,96507.0,96506.0,0.00049619]
[1736866512301,0.11248377,96507.0,96506.0,0.00149619]
[1736866512924,0.11248377,96507.0,96506.0,0.00434999]
[1736866512925,0.11210692,96507.0,96506.0,0.00434999]
[1736866513127,0.11210692,96507.0,96506.0,0.00234999]
[1736866513536,0.11210692,96507.0,96506.0,0.00134999]
[1736866513711,3.81210692,96507.0,96506.0,0.00134999]
[1736866513909,3.81210692,96507.0,96506.0,0.00234999]
[1736866514109,3.81410692,96507.0,96506.0,0.00234999]
[1736866514517,3.80622692,96507.0,96506.0,0.00234999]
[1736866515060,3.702,96507.0,96506.0,0.00134999]
[1736866515296,3.70788,96507.0,96506.0,0.00134999]
[1736866515498,3.81210692,96507.0,96506.0,0.00134999]
[1736866515672,3.81810692,96507.0,96506.0,0.00234999]
[1736866515847,3.81310692,96507.0,96506.0,0.00134999]
[1736866516258,3.81310692,96507.0,96506.0,0.00334999]
[1736866516459,3.81310692,96507.0,96506.0,0.00134999]
[1736866516838,3.81548377,96507.0,96506.0,0.00134999]
[1736866517286,3.81410692,96507.0,96506.0,0.00134999]
[1736866517487,3.81410692,96507.0,96506.0,0.00234999]
[1736866517488,3.702,96507.0,96506.0,0.00234999]
[1736866517689,3.70988,96507.0,96506.0,0.00234999]
[1736866517893,3.70988,96507.0,96506.0,0.00134999]
[1736866518097,3.702,96507.0,96506.0,0.0126932]
[1736866518312,3.702,96507.0,96506.0,0.00234999]
[1736866518527,3.704,96507.0,96506.0,0.30723615]
[1736866518741,0.09118971,96546.0,96506.0,0.62988006]
[1736866518946,0.09118971,96546.0,96545.0,0.09962315]
[1736866519170,0.09118971,96546.0,96529.0,0.076]
[1736866519372,0.10422692,96545.0,96530.0,0.00103577]
[1736866519570,0.10422692,96545.0,96507.0,0.03322822]
[1736866519571,0.20433833,96540.0,96518.0,0.00103584]
[1736866519884,0.10422692,96539.0,96518.0,0.00103584]
[1736866519978,0.20433833,96530.0,96512.0,0.00103592]
[1736866520224,0.00812,96529.0,96513.0,0.00103596]
[1736866520475,0.00812,96529.0,96506.0,0.10147695]
[1736866520476,0.00037685,96527.0,96512.0,0.00049619]
[1736866520712,0.20433833,96523.0,96512.0,0.00049619]
[1736866520923,0.00812,96529.0,96512.0,0.00049619]
[1736866521145,0.10422692,96528.0,96512.0,0.00049619]
[1736866521502,0.00812,96529.0,96513.0,0.00203601]
[1736866521712,0.00812,96528.0,96515.0,0.09962315]
[1736866521910,0.20471518,96550.0,96520.0,0.09962315]
[1736866522137,0.11234692,96549.0,96521.0,0.00103582]
[1736866522463,0.00812,96548.0,96524.0,0.1]
[1736866522672,0.00812,96548.0,96525.0,0.00103574]
[1736866522880,0.00812,96548.0,96526.0,0.03152432]
[1736866523281,0.00216984,96558.0,96527.0,0.09962315]
[1736866523498,0.00812,96557.0,96535.0,0.09962315]
[1736866523685,0.00179299,96558.0,96536.0,0.00103565]
[1736866523843,0.00179299,96558.0,96528.0,0.10422692]
[1736866523844,0.10422692,96537.0,96502.0,0.00072934]
[1736866524043,0.1251,96555.0,96502.0,0.00072934]
[1736866524044,0.45422692,96517.0,96502.0,0.00072934]
[1736866524275,0.1,96513.0,96493.0,0.00072934]
[1736866524450,0.20422692,96513.0,96493.0,0.00072934]
[1736866524651,0.21234692,96513.0,96493.0,0.00072934]
[1736866525082,0.31234692,96513.0,96493.0,0.00072934]
[1736866525283,0.21234692,96513.0,96479.0,0.00072934]
[1736866525482,0.21234692,96513.0,96482.0,0.02091277]
[1736866525828,0.31163192,96513.0,96479.0,0.00072934]
[1736866526203,0.31163192,96513.0,96479.0,0.00176558]
[1736866526204,0.10351192,96513.0,96479.0,0.00176558]
[1736866526407,0.00812,96513.0,96501.0,0.00103621]
[1736866526944,0.01512,96513.0,96512.0,0.00149619]
[1736866527120,0.01712,96513.0,96512.0,0.00149619]
[1736866527352,0.22134692,96513.0,96512.0,0.00149619]
[1736866527528,0.21934692,96513.0,96512.0,0.00149619]
[1736866527734,0.11934692,96513.0,96512.0,0.00149619]
[1736866527899,0.01512,96513.0,96512.0,0.00149619]
[1736866528313,0.11234692,96513.0,96512.0,0.00049619]
[1736866528755,0.11734692,96513.0,96512.0,0.00049619]
[1736866529133,0.11334692,96513.0,96512.0,0.00049619]
[1736866529380,0.12034692,96513.0,96512.0,0.00149619]
[1736866529515,0.00912,96513.0,96512.0,0.00049619]
[1736866529719,0.11334692,96513.0,96512.0,0.00049619]
[1736866529966,0.21734692,96513.0,96512.0,0.00049619]
[1736866530173,0.2,96501.0,96479.0,0.00072934]
[1736866530346,0.2,96501.0,96476.0,0.00072934]
[1736866530347,0.45422692,96501.0,96476.0,0.00072934]
[1736866531044,0.47722692,96501.0,96476.0,0.00072934]
[1736866531243,0.35,96487.0,96476.0,0.00072934]
[1736866531446,1.00942992,96487.0,96469.0,0.0008571]
[1736866531780,1.11716791,96487.0,96469.0,0.0008571]
[1736866531934,0.79411491,96487.0,96469.0,0.0008571]
[1736866532132,0.85361356,96487.0,96469.0,0.0008571]
[1736866532521,1.15361356,96487.0,96469.0,0.0008571]
[1736866532720,0.1,96470.0,96469.0,0.0008571]
[1736866532846,0.43949651,96470.0,96469.0,0.0008571]
[1736866533051,0.59057595,96470.0,96469.0,0.0008571]
[1736866533254,0.63757595,96470.0,96469.0,0.0008571]
[1736866533497,0.98235495,96470.0,96469.0,0.0008571]
[1736866533956,0.30433833,96437.0,96436.0,0.00072934]
[1736866534163,0.27184555,96437.0,96436.0,0.00072934]
[1736866534370,0.37184555,96437.0,96436.0,0.00072934]
[1736866534795,0.2,96435.0,96404.0,0.00103701]
[1736866535058,0.00812,96434.0,96406.0,0.43543395]
[1736866535188,0.00812,96434.0,96407.0,0.00103692]
[1736866535389,0.00049922,96435.0,96422.0,0.207419]
[1736866535637,0.00049922,96435.0,96428.0,0.02186414]
[1736866535837,0.00812,96434.0,96428.0,0.00103686]
[1736866536222,0.00049922,96435.0,96430.0,0.0772]
[1736866536223,0.00449922,96435.0,96430.0,0.0772]
[1736866536423,0.00449922,96435.0,96433.0,0.02037962]
[1736866536622,0.00449922,96435.0,96434.0,0.31265864]
[1736866536768,0.00049922,96435.0,96434.0,0.37347173]
[1736866536974,0.00049922,96435.0,96433.0,0.05178]
[1736866537180,0.00049922,96435.0,96430.0,0.0772]
[1736866537181,0.00049922,96435.0,96434.0,0.00103679]
[1736866537387,0.00149922,96435.0,96434.0,0.00103679]
[1736866537919,0.00049922,96435.0,96434.0,0.00103679]
[1736866538122,0.00049922,96435.0,96434.0,0.10422692]
[1736866538315,0.00049922,96435.0,96434.0,0.1256873]
[1736866538730,0.00249922,96435.0,96434.0,0.1052636]
[1736866539269,0.00149922,96435.0,96434.0,0.1052636]
[1736866539491,0.00249922,96435.0,96434.0,0.1052636]
[1736866539670,0.00149922,96435.0,96434.0,0.1052636]
[1736866540025,0.00249922,96435.0,96434.0,0.1052636]
[1736866540234,0.00149922,96435.0,96434.0,0.00103666]
[1736866540439,0.00149922,96435.0,96434.0,0.00203666]
[1736866541077,0.00149922,96435.0,96434.0,0.00103666]
[1736866541281,0.00249922,96435.0,96434.0,0.001]
[1736866541479,0.00149922,96435.0,96434.0,0.00203677]
[1736866541684,0.00149922,96435.0,96434.0,0.11636469]
[1736866541890,0.00149922,96435.0,96434.0,0.00703677]
[1736866542077,0.00249922,96435.0,96434.0,0.11226369]
[1736866542288,0.00149922,96435.0,96434.0,0.10626369]
[1736866542533,0.00249922,96435.0,96434.0,0.15726369]
[1736866542717,0.00249922,96435.0,96434.0,0.30126369]
[1736866542926,0.00149922,96435.0,96434.0,0.39203061]
[1736866543095,0.00249922,96435.0,96434.0,0.39903061]
[1736866543437,0.00149922,96435.0,96434.0,0.40153373]
[1736866543644,0.00812,96467.0,96451.0,0.414717]
[1736866543855,0.1,96491.0,96452.0,0.14673505]
[1736866544060,0.00812,96474.0,96452.0,0.14673505]
[1736866544264,0.00812,96474.0,96452.0,0.19851505]
[1736866544810,0.00179403,96487.0,96452.0,0.19851505]
[1736866545020,0.00179403,96487.0,96460.0,0.0207728]
[1736866545381,0.00812,96486.0,96461.0,0.00103642]
[1736866545580,0.10179403,96487.0,96460.0,0.0207728]
[1736866545581,0.00812,96485.0,96462.0,0.10526334]
[1736866546427,0.00179403,96487.0,96466.0,0.207326]
[1736866546637,0.11022692,96486.0,96467.0,0.00103637]
[1736866546788,0.1,96485.0,96467.0,0.00103648]
[1736866546984,0.11834692,96486.0,96420.0,0.1092]
[1736866546985,0.1,96472.0,96443.0,0.00072934]
[1736866547189,0.10422692,96471.0,96444.0,0.00103662]
[1736866547398,0.1,96459.0,96444.0,0.05178]
[1736866547566,0.1,96454.0,96444.0,0.0519288]
[1736866547942,0.11234692,96453.0,96444.0,0.0001488]
[1736866548148,0.00812,96453.0,96444.0,0.0001488]
[1736866548356,0.00808,96452.0,96444.0,0.0001488]
[1736866548560,0.2,96471.0,96445.0,0.0753]
[1736866548690,0.10422692,96470.0,96452.0,0.0008543]
[1736866548912,0.001,96454.0,96453.0,0.00103663]
[1736866549113,0.1,96483.0,96453.0,0.10526355]
[1736866549297,0.00808,96473.0,96453.0,0.10526355]
[1736866549709,0.10422692,96483.0,96453.0,0.10526355]
[1736866549912,0.00808,96482.0,96455.0,0.20735]
[1736866550159,0.00179403,96487.0,96459.0,0.25422692]
[1736866550359,0.00179403,96487.0,96481.0,0.207294]
[1736866550608,0.00179403,96487.0,96480.0,0.02032203]
[1736866550609,0.00179403,96487.0,96482.0,0.10526306]
[1736866550944,0.00179403,96487.0,96481.0,0.05178]
[1736866551261,0.00179403,96487.0,96482.0,0.05178]
[1736866551628,0.00279403,96487.0,96482.0,0.05178]
[1736866551826,0.00179403,96487.0,96482.0,0.0001488]
[1736866552269,0.00279403,96487.0,96482.0,0.0001488]
[1736866552481,0.1,96484.0,96482.0,0.0001488]
[1736866552691,0.20422692,96484.0,96482.0,0.0001488]
[1736866553069,0.10422692,96484.0,96482.0,0.0001488]
[1736866553315,0.20422692,96484.0,96482.0,0.0001488]
[1736866553473,0.00808,96483.0,96482.0,0.0001488]
[1736866553877,0.00808,96483.0,96482.0,0.0011488]
[1736866554461,0.00808,96483.0,96482.0,0.0001488]
[1736866554752,0.00808,96483.0,96482.0,0.0011488]
[1736866555505,0.10808,96483.0,96482.0,0.0011488]
[1736866555675,0.10908,96483.0,96482.0,0.0011488]
[1736866555888,0.32439432,96483.0,96482.0,0.0011488]
[1736866556024,0.30522692,96483.0,96482.0,0.0011488]
[1736866556225,0.31330692,96483.0,96482.0,0.0001488]
[1736866556434,0.31330692,96483.0,96482.0,0.0011488]
[1736866556639,0.001,96483.0,96482.0,0.0011488]
[1736866556881,0.21330692,96483.0,96482.0,0.0011488]
[1736866557267,0.34585286,96483.0,96482.0,0.0011488]
[1736866557441,0.34481702,96483.0,96482.0,0.0011488]
[1736866558717,0.31330692,96483.0,96482.0,0.0011488]
[1736866559098,0.10908,96483.0,96482.0,0.0011488]
[1736866559336,0.31434276,96483.0,96482.0,0.0011488]
[1736866559532,0.46330692,96483.0,96482.0,0.0011488]
[1736866560475,0.63430692,96483.0,96482.0,0.0001488]
[1736866560610,0.1,96453.0,96452.0,0.0008543]
[1736866560810,0.40322692,96453.0,96452.0,0.0008543]
[1736866561040,0.58272692,96453.0,96452.0,0.0008543]
[1736866562122,0.64451279,96453.0,96452.0,0.0008543]
[1736866562557,0.66751279,96453.0,96452.0,0.0008543]
[1736866562774,0.73528097,96453.0,96452.0,0.0008543]
[1736866562977,0.71228097,96453.0,96452.0,0.0008543]
[1736866563277,0.61325995,96453.0,96452.0,0.0008543]
[1736866563476,0.5858766,96453.0,96452.0,0.0008543]
[1736866563679,0.62325995,96453.0,96452.0,0.0018543]
[1736866563851,0.61625995,96453.0,96452.0,0.0008543]
[1736866564065,0.61325995,96453.0,96452.0,0.0008543]
[1736866564274,0.35,96436.0,96435.0,0.0008547]
[1736866564475,0.49269027,96436.0,96435.0,0.0008547]
[1736866564674,0.52394311,96436.0,96435.0,0.0008547]
[1736866565277,0.54694311,96436.0,96435.0,0.0008547]
[1736866565406,0.53294311,96436.0,96435.0,0.0018547]
[1736866565609,0.50255976,96436.0,96435.0,0.0018547]
[1736866565839,0.37130692,96436.0,96435.0,0.0018547]
[1736866566042,0.50255976,96436.0,96435.0,0.0018547]
[1736866566246,0.48178552,96436.0,96435.0,0.0018547]
[1736866566421,0.47130692,96436.0,96435.0,0.0018547]
[1736866566625,0.46230692,96436.0,96435.0,0.0008547]
[1736866566827,0.51153761,96436.0,96435.0,0.0008547]
[1736866567033,0.51953761,96436.0,96435.0,0.0008547]
[1736866567461,0.51653761,96436.0,96435.0,0.0008547]
[1736866567908,0.51153761,96436.0,96435.0,0.0008547]
[1736866568138,0.46530692,96436.0,96435.0,0.0008547]
[1736866568344,0.47330692,96436.0,96435.0,0.0008547]
[1736866568583,0.49630692,96436.0,96435.0,0.0008547]
[1736866568797,0.59630692,96436.0,96435.0,0.0008547]
[1736866569181,0.59330692,96436.0,96435.0,0.0008547]
[1736866569384,0.65369013,96436.0,96435.0,0.0008547]
[1736866569584,0.73579013,96436.0,96435.0,0.0008547]
[1736866569783,0.72779013,96436.0,96435.0,0.0008547]
[1736866569986,0.63079013,96436.0,96435.0,0.0008547]
[1736866570192,0.73979013,96436.0,96435.0,0.0008547]
[1736866570414,0.73679013,96436.0,96435.0,0.0008547]
[1736866570673,0.63679013,96436.0,96435.0,0.0008547]
[1736866570970,0.64079013,96436.0,96435.0,0.0008547]
[1736866571209,0.98489713,96436.0,96435.0,0.0008547]
[1736866571418,0.80564213,96436.0,96435.0,0.0008547]
[1736866571595,0.62870692,96436.0,96435.0,0.0008547]
[1736866571793,0.52870692,96436.0,96435.0,0.0008547]
[1736866571945,0.60570692,96436.0,96435.0,0.0008547]
[1736866572635,0.60170692,96436.0,96435.0,0.0008547]
[1736866572854,0.66693013,96436.0,96435.0,0.0008547]
[1736866573111,0.15,96435.0,96384.0,0.01520794]
[1736866573341,0.1,96416.0,96398.0,0.00072972]
[1736866573498,0.1,96406.0,96398.0,0.00072972]
[1736866573703,0.35,96399.0,96398.0,0.00072972]
[1736866573907,0.45422692,96399.0,96398.0,0.00072972]
[1736866574311,0.45422692,96399.0,96361.0,0.00052048]
[1736866574312,0.1,96390.0,96361.0,0.00052048]
[1736866574658,0.1,96390.0,96365.0,0.0664948]
[1736866574659,0.2049435,96380.0,96365.0,0.0664948]
[1736866574864,0.10808,96389.0,96366.0,0.00052079]
[1736866574976,0.00014954,96399.0,96367.0,0.11092848]
[1736866575184,0.00014954,96399.0,96369.0,0.0489]
[1736866575385,0.00014954,96399.0,96382.0,0.02041747]
[1736866575624,0.00014954,96399.0,96383.0,0.10474686]
[1736866575826,0.00808,96398.0,96383.0,0.10474686]
[1736866576168,0.00808,96398.0,96384.0,0.01251643]
[1736866576300,0.00808,96398.0,96385.0,0.10474686]
[1736866577371,0.00908,96398.0,96385.0,0.15652686]
[1736866577524,0.00808,96398.0,96385.0,0.15652686]
[1736866577915,0.00908,96398.0,96385.0,0.15652686]
[1736866578126,0.00808,96398.0,96386.0,0.01769443]
[1736866578325,0.00908,96398.0,96387.0,0.10474686]
[1736866578527,0.001,96398.0,96387.0,0.10474686]
[1736866578729,0.001,96398.0,96390.0,0.20749]
[1736866578960,0.001,96398.0,96392.0,0.1989]
[1736866579164,0.2049435,96440.0,96396.0,0.10422692]
[1736866579165,0.00816,96424.0,96396.0,0.10422692]
[1736866579376,0.00816,96424.0,96399.0,0.10422692]
[1736866579626,0.00816,96424.0,96420.0,0.02116367]
[1736866579878,0.00816,96430.0,96421.0,0.00051911]
[1736866580102,0.00816,96430.0,96421.0,0.00051904]
[1736866580442,0.00014998,96440.0,96421.0,0.00051904]
[1736866580585,0.001,96424.0,96423.0,0.207419]
[1736866580791,0.00014998,96440.0,96423.0,0.10474584]
[1736866580998,0.00014998,96440.0,96424.0,0.10474583]
[1736866581197,0.001,96430.0,96424.0,0.10474583]
[1736866581442,0.00014998,96440.0,96425.0,0.207415]
[1736866581661,0.00014998,96440.0,96428.0,0.207406]
[1736866581835,0.00014998,96440.0,96429.0,0.10474546]
[1736866582030,0.00014998,96440.0,96426.0,0.04648536]
[1736866582207,0.00014998,96440.0,96422.0,0.10379276]
[1736866582208,0.00014998,96440.0,96430.0,0.00051858]
[1736866583183,0.00014998,96440.0,96431.0,0.00051879]
[1736866584112,0.00014998,96440.0,96431.0,0.00051902]
[1736866584314,0.00014998,96440.0,96423.0,0.00051912]
[1736866584651,0.00014998,96440.0,96431.0,0.004]
[1736866584876,0.00194569,96440.0,96435.0,0.207391]
[1736866585066,0.00194569,96440.0,96436.0,0.10474531]
[1736866585279,0.00194569,96440.0,96438.0,0.0475]
[1736866585596,0.00194569,96440.0,96439.0,0.18502692]
[1736866585827,0.00194569,96440.0,96439.0,0.20562703]
[1736866585976,0.00194569,96440.0,96439.0,0.29315653]
[1736866586427,0.00294569,96440.0,96439.0,0.50054053]
[1736866586723,0.10179403,96482.0,96462.0,0.207335]
[1736866586724,0.00179403,96482.0,96462.0,0.207335]
[1736866586921,0.00179403,96482.0,96463.0,0.10422692]
[1736866586922,0.00194398,96482.0,96463.0,0.10422692]
[1736866587058,0.00194398,96482.0,96464.0,0.03115619]
[1736866587276,0.00194398,96482.0,96465.0,0.10422692]
[1736866587500,0.00194398,96482.0,96466.0,0.0808]
[1736866587712,0.00194398,96482.0,96467.0,0.10422692]
[1736866587933,0.00194398,96482.0,96468.0,0.414644]
[1736866588131,0.00194398,96482.0,96469.0,0.17248763]
[1736866588519,0.00194398,96482.0,96470.0,0.414636]
[1736866588724,0.00194398,96482.0,96474.0,0.414618]
[1736866588901,0.00194398,96482.0,96475.0,0.10422692]
[1736866589056,0.00194398,96482.0,96478.0,0.2073]
[1736866589261,0.00194398,96482.0,96480.0,0.207296]
[1736866589461,0.00194398,96482.0,96481.0,0.10422692]
[1736866590018,0.00194398,96482.0,96481.0,0.33502692]
[1736866590194,0.00179403,96487.0,96486.0,0.357283]
[1736866590402,0.00179403,96487.0,96486.0,0.46150992]
[1736866590579,0.00179403,96487.0,96486.0,0.60081942]
[1736866592223,0.00816,96544.0,96506.0,0.20724]
[1736866592473,0.00194312,96528.0,96507.0,0.18502692]
[1736866592634,0.00194312,96528.0,96511.0,0.10422692]
[1736866592837,0.00194312,96528.0,96512.0,0.10422692]
[1736866593160,0.00194312,96528.0,96519.0,0.207212]
[1736866593360,0.00194312,96528.0,96521.0,0.207208]
[1736866593568,0.00194312,96528.0,96522.0,0.10422692]
[1736866593720,0.00294312,96528.0,96525.0,0.2072]
[1736866593924,0.00194312,96528.0,96526.0,0.10422692]
[1736866594200,0.00194312,96528.0,96527.0,0.05704149]
[1736866594352,0.00294312,96528.0,96527.0,0.18217544]
[1736866594560,0.00294312,96528.0,96527.0,0.17691395]
[1736866594769,0.00294312,96528.0,96527.0,0.05178]
[1736866594933,0.00294312,96528.0,96527.0,0.15600692]
[1736866595335,0.00294312,96528.0,96527.0,0.10422692]
[1736866595586,0.00194312,96528.0,96527.0,0.10422692]
[1736866595761,0.00194312,96528.0,96527.0,0.13744981]
[1736866596208,0.00194312,96528.0,96527.0,0.34464481]
[1736866596350,0.00294312,96528.0,96527.0,0.34464481]
[1736866596545,0.00194312,96528.0,96527.0,0.34764481]
[1736866596858,0.00194312,96528.0,96527.0,0.35664481]
[1736866597067,0.00294312,96528.0,96527.0,0.35364481]
[1736866597271,0.00294312,96528.0,96527.0,0.34464481]
[1736866597467,0.00294312,96528.0,96527.0,0.35790128]
[1736866597673,0.00394312,96528.0,96527.0,0.36690128]
[1736866598673,0.00394312,96528.0,96527.0,0.59470128]
[1736866599223,0.00394312,96528.0,96527.0,0.59870128]
[1736866599377,0.00194312,96528.0,96527.0,0.42950481]
[1736866599575,0.00194312,96528.0,96527.0,0.42550481]
[1736866599770,0.00394312,96528.0,96527.0,0.44150481]
[1736866599995,0.00394312,96528.0,96527.0,0.22530981]
[1736866600195,0.00394312,96528.0,96527.0,0.11128692]
[1736866600420,0.00294312,96528.0,96527.0,0.00906]
[1736866600637,0.00294312,96528.0,96527.0,0.00506]
[1736866600638,0.00194312,96528.0,96527.0,0.00506]
[1736866600998,0.00194312,96528.0,96527.0,0.01406]
[1736866601798,0.00194312,96528.0,96527.0,0.11828692]
[1736866602043,0.00194312,96528.0,96527.0,0.13219531]
[1736866602250,0.00194312,96528.0,96527.0,0.01896839]
[1736866602487,0.00194312,96528.0,96527.0,0.01406]
[1736866602601,0.00194312,96528.0,96527.0,0.00906]
[1736866602836,0.00194312,96528.0,96527.0,0.00606]
[1736866603047,0.00194312,96528.0,96527.0,0.01506]
[1736866603341,0.00194312,96528.0,96527.0,0.10428692]
[1736866603509,0.00194312,96528.0,96527.0,0.13751601]
[1736866603651,0.00194312,96528.0,96527.0,0.14651601]
[1736866603856,0.00194312,96528.0,96527.0,0.00306]
[1736866604364,0.00194312,96528.0,96527.0,0.00906]
[1736866604992,0.00194312,96528.0,96527.0,0.11328692]
[1736866605157,0.00194312,96528.0,96527.0,0.11028692]
[1736866605359,0.00194312,96528.0,96527.0,0.11328692]
[1736866605585,0.00194312,96528.0,96527.0,0.14145567]
[1736866605783,0.00194312,96528.0,96527.0,0.14945567]
[1736866606414,0.00194312,96528.0,96527.0,0.14645567]
[1736866606613,0.00194312,96528.0,96527.0,0.11628692]
[1736866606838,0.00194312,96528.0,96527.0,0.01206]
[1736866607236,0.00194312,96528.0,96527.0,0.00406]
[1736866607600,0.00194312,96528.0,96527.0,0.01306]
[1736866607826,0.00194312,96528.0,96527.0,0.013]
[1736866608413,0.10194312,96528.0,96527.0,0.009]
[1736866608610,0.10194312,96528.0,96527.0,0.013]
[1736866608811,0.10194312,96528.0,96527.0,0.004]
[1736866609257,0.10194312,96528.0,96527.0,0.008]
[1736866609574,0.10194312,96528.0,96513.0,0.02034664]
[1736866609575,0.10294312,96528.0,96513.0,0.02034664]
[1736866609787,0.10594312,96528.0,96489.0,0.414554]
[1736866610095,0.10494312,96528.0,96511.0,0.02092544]
[1736866610421,0.10194312,96528.0,96511.0,0.02092544]
[1736866610638,0.1,96515.0,96490.0,0.20845384]
[1736866610871,0.1,96508.0,96489.0,0.0205871]
[1736866611074,0.00808,96507.0,96472.0,0.0803]
[1736866611274,0.00808,96507.0,96488.0,0.10422692]
[1736866611672,0.1,96505.0,96485.0,0.02104168]
[1736866611983,0.1,96505.0,96462.0,0.0453]
[1736866611984,0.1,96498.0,96460.0,0.207337]
[1736866612400,0.1,96489.0,96456.0,0.0803]
[1736866612614,0.1,96489.0,96470.0,0.02089845]
[1736866612821,0.1,96489.0,96487.0,0.0009142]
[1736866613022,0.1,96489.0,96487.0,0.0039142]
[1736866613406,0.1,96489.0,96487.0,0.0009142]
[1736866613578,0.1,96489.0,96487.0,0.0079142]
[1736866613782,0.1,96489.0,96487.0,0.0039142]
[1736866614340,0.1,96489.0,96487.0,0.0109142]
[1736866614538,0.0484,96502.0,96487.0,0.0109142]
[1736866614539,0.1,96501.0,96487.0,0.0109142]
[1736866614684,0.00812,96500.0,96487.0,0.0109142]
[1736866615091,0.00812,96500.0,96487.0,0.0079142]
[1736866615339,0.00812,96500.0,96487.0,0.0109142]
[1736866615551,0.20444113,96500.0,96487.0,0.0039142]
[1736866615723,0.0484,96502.0,96487.0,0.0039142]
[1736866615935,0.00812,96501.0,96487.0,0.0029142]
[1736866616124,0.00812,96501.0,96487.0,0.0008542]
[1736866616382,0.00812,96501.0,96487.0,0.0018542]
[1736866616554,0.00812,96501.0,96487.0,0.0048542]
[1736866616696,0.00812,96500.0,96487.0,0.0008542]
[1736866616892,0.003,96502.0,96488.0,0.10422692]
[1736866617106,0.00812,96501.0,96489.0,0.01050811]
[1736866617325,0.001,96502.0,96490.0,0.10422692]
[1736866617530,0.001,96502.0,96490.0,0.40958421]
[1736866617704,0.001,96502.0,96498.0,0.207257]
[1736866617938,0.001,96502.0,96499.0,0.10422692]
[1736866618188,0.001,96502.0,96500.0,0.03115439]
[1736866618369,0.001,96502.0,96501.0,0.31147792]
[1736866618770,0.001,96501.0,96499.0,6e-05]
[1736866619092,0.001,96501.0,96499.0,0.10422692]
[1736866619236,0.001,96501.0,96491.0,0.207272]
[1736866619237,0.002,96501.0,96500.0,0.10422692]
[1736866619434,0.002,96501.0,96500.0,0.11464961]
[1736866619639,0.001,96501.0,96500.0,0.11464961]
[1736866619848,0.0001499,96511.0,96501.0,0.207251]
[1736866620056,0.0001499,96511.0,96502.0,0.10422692]
[1736866620466,0.0001499,96511.0,96477.0,0.00812]
[1736866620680,0.101,96502.0,96500.0,0.009]
[1736866620878,0.1,96501.0,96500.0,0.014]
[1736866621136,0.2467,96501.0,96500.0,0.014]
[1736866621828,0.25482,96501.0,96500.0,0.014]
[1736866621967,0.25482,96501.0,96500.0,0.005]